bitfinex/quotes_BTCUSD_20240810
["timestamp","ask_amount","ask_price","bid_price","bid_amount"]
[1723306203227,0.24889023,60633.0,60632.0,0.0449119]
[1723306203462,0.33135323,60633.0,60632.0,0.0539119]
[1723306203661,0.24889023,60633.0,60632.0,0.0539119]
[1723306203788,0.24889023,60633.0,60632.0,0.0399119]
[1723306204202,0.49627923,60633.0,60632.0,0.0439119]
[1723306204408,0.49627923,60633.0,60632.0,0.0149119]
[1723306204409,1.69503123,60633.0,60632.0,0.0149119]
[1723306204846,1.69503123,60633.0,60632.0,0.0009119]
[1723306204847,1.85995723,60633.0,60632.0,0.0009119]
[1723306205276,1.85995723,60633.0,60632.0,0.0129119]
[1723306205893,1.85995723,60633.0,60632.0,0.0009119]
[1723306206129,1.85995723,60633.0,60632.0,0.0139119]
[1723306206539,1.85995723,60633.0,60632.0,0.0009119]
[1723306207004,1.93369643,60633.0,60632.0,0.0009119]
[1723306207494,1.85995723,60633.0,60632.0,0.0009119]
[1723306207756,1.69503123,60633.0,60632.0,0.0009119]
[1723306209256,1.76943158,60633.0,60632.0,0.0009119]
[1723306209479,1.80840024,60633.0,60632.0,0.0009119]
[1723306209683,1.80840024,60633.0,60615.0,0.01]
[1723306209684,0.082486,60616.0,60615.0,0.01]
[1723306209837,0.55067292,60616.0,60615.0,0.01]
[1723306210246,0.81564492,60616.0,60615.0,0.01]
[1723306210655,0.81564492,60616.0,60615.0,0.03]
[1723306211024,0.81564492,60616.0,60615.0,0.044]
[1723306211242,0.81564492,60616.0,60615.0,0.014]
[1723306211453,0.81564492,60616.0,60601.0,0.082506]
[1723306211454,0.247462,60615.0,60614.0,0.01]
[1723306211656,0.41127692,60615.0,60614.0,0.03]
[1723306213138,0.24630192,60615.0,60614.0,0.03]
[1723306213309,0.41127692,60615.0,60614.0,0.03]
[1723306213512,0.41127692,60615.0,60614.0,0.039]
[1723306214181,0.41127692,60615.0,60614.0,0.047]
[1723306214575,0.41127692,60615.0,60614.0,0.039]
[1723306215055,0.41127692,60615.0,60614.0,0.048]
[1723306215211,0.41127692,60615.0,60614.0,0.039]
[1723306215611,0.41127692,60615.0,60614.0,0.027]
[1723306215612,0.57625192,60615.0,60614.0,0.027]
[1723306216384,0.57625192,60615.0,60614.0,0.019]
[1723306216609,0.57625192,60615.0,60614.0,0.028]
[1723306216773,0.41127692,60615.0,60614.0,0.048]
[1723306216984,0.49027692,60615.0,60614.0,0.028]
[1723306217185,0.49027692,60615.0,60614.0,0.039]
[1723306217577,0.49027692,60615.0,60614.0,0.047]
[1723306217781,0.65525192,60615.0,60614.0,0.047]
[1723306217982,0.65525192,60615.0,60614.0,0.039]
[1723306218188,0.49027692,60615.0,60614.0,0.039]
[1723306218658,0.49027692,60615.0,60614.0,0.048]
[1723306218659,0.32530192,60615.0,60614.0,0.048]
[1723306218833,0.32530192,60615.0,60614.0,0.028]
[1723306219031,0.49027692,60615.0,60614.0,0.028]
[1723306219266,0.49027692,60615.0,60614.0,0.039]
[1723306219401,0.65525192,60615.0,60614.0,0.039]
[1723306219606,0.49027692,60615.0,60614.0,0.048]
[1723306219785,0.65525192,60615.0,60614.0,0.048]
[1723306220240,0.49027692,60615.0,60614.0,0.039]
[1723306220677,0.49027692,60615.0,60614.0,0.043]
[1723306221054,0.65525192,60615.0,60614.0,0.034]
[1723306221633,0.65525192,60615.0,60614.0,0.013]
[1723306222007,0.65525192,60615.0,60614.0,0.026]
[1723306225417,0.65525192,60615.0,60614.0,0.036]
[1723306226093,0.65525192,60615.0,60614.0,0.023]
[1723306226582,0.65525192,60615.0,60614.0,0.027]
[1723306227186,0.65525192,60615.0,60614.0,0.023]
[1723306227596,0.65525192,60615.0,60614.0,0.021]
[1723306227799,0.65525192,60615.0,60614.0,0.008]
[1723306227999,0.65525192,60615.0,60614.0,0.018]
[1723306228200,0.65525192,60615.0,60614.0,0.027]
[1723306228552,0.65525192,60615.0,60614.0,0.018]
[1723306228753,0.65525192,60615.0,60614.0,0.038]
[1723306228951,0.49027692,60615.0,60614.0,0.038]
[1723306229173,0.1,60616.0,60615.0,0.03]
[1723306229395,0.4713,60628.0,60625.0,0.03]
[1723306229396,0.144972,60626.0,60625.0,0.03]
[1723306229600,1.24373192,60626.0,60625.0,0.03]
[1723306230180,1.24373192,60626.0,60625.0,0.01]
[1723306230377,1.24373192,60626.0,60625.0,0.03]
[1723306230759,1.40867692,60626.0,60625.0,0.03]
[1723306231607,1.40867692,60626.0,60625.0,0.045]
[1723306231764,1.24373192,60626.0,60625.0,0.044]
[1723306232177,1.24671085,60626.0,60625.0,0.058]
[1723306233506,1.24671085,60626.0,60625.0,0.044]
[1723306233754,1.24671085,60626.0,60625.0,0.058]
[1723306233974,1.41165585,60626.0,60625.0,0.038]
[1723306234184,1.41165585,60626.0,60625.0,0.028]
[1723306234185,1.51435585,60626.0,60625.0,0.028]
[1723306234412,1.75463774,60626.0,60625.0,0.028]
[1723306235035,1.75463774,60626.0,60625.0,0.014]
[1723306235257,1.75463774,60626.0,60617.0,0.03]
[1723306235258,0.412417,60618.0,60617.0,0.03]
[1723306235470,0.57623192,60618.0,60617.0,0.03]
[1723306235711,0.57623192,60618.0,60614.0,0.0109119]
[1723306235712,0.0797,60617.0,60614.0,0.0109119]
[1723306235913,0.68857692,60615.0,60614.0,0.0009119]
[1723306236140,1.85878349,60615.0,60614.0,0.0001619]
[1723306236384,0.412477,60609.0,60608.0,0.000913]
[1723306236589,1.29623737,60609.0,60608.0,0.000913]
[1723306236942,1.22392286,60609.0,60608.0,0.000913]
[1723306237150,1.29926235,60609.0,60608.0,0.000913]
[1723306237345,1.29926235,60609.0,60579.0,0.50107874]
[1723306237346,0.082535,60580.0,60579.0,0.50107874]
[1723306237544,0.412675,60580.0,60579.0,0.52107874]
[1723306237763,0.1424,60590.0,60579.0,0.52107874]
[1723306237764,0.082534,60581.0,60580.0,0.02]
[1723306238099,0.082534,60581.0,60580.0,0.01]
[1723306238299,0.082534,60581.0,60580.0,0.03]
[1723306238300,0.247602,60581.0,60580.0,0.03]
[1723306238489,0.41267,60581.0,60580.0,0.01]
[1723306238911,0.41267,60581.0,60571.0,0.039219]
[1723306238912,0.247638,60572.0,60571.0,0.039219]
[1723306239115,0.41273,60572.0,60571.0,0.039219]
[1723306239242,0.41273,60572.0,60571.0,0.019219]
[1723306239453,0.41273,60572.0,60571.0,0.039219]
[1723306239859,0.41273,60572.0,60571.0,0.019219]
[1723306240660,0.41273,60572.0,60571.0,0.039219]
[1723306240874,0.41273,60572.0,60571.0,0.019219]
[1723306241275,0.41273,60572.0,60571.0,0.048219]
[1723306241772,0.41604919,60572.0,60571.0,0.048219]
[1723306241973,0.41604919,60572.0,60571.0,0.053219]
[1723306242384,0.41604919,60572.0,60571.0,0.048219]
[1723306242818,0.41604919,60572.0,60571.0,0.038219]
[1723306243313,0.41604919,60572.0,60571.0,0.058219]
[1723306243430,0.41604919,60572.0,60571.0,0.038219]
[1723306243732,0.41604919,60572.0,60571.0,0.058219]
[1723306245812,0.00331919,60572.0,60571.0,0.140766]
[1723306246021,0.42888492,60581.0,60580.0,0.02]
[1723306246223,0.247609,60579.0,60578.0,0.02]
[1723306246453,0.247609,60579.0,60577.0,0.02]
[1723306246454,0.247614,60578.0,60577.0,0.02]
[1723306246843,0.082545,60573.0,60572.0,0.02]
[1723306247008,0.00314776,60578.0,60577.0,0.02]
[1723306247215,0.08184646,60580.0,60579.0,0.02]
[1723306247216,0.42945146,60580.0,60579.0,0.02]
[1723306247466,0.082543,60575.0,60571.0,0.039219]
[1723306247668,0.082543,60575.0,60571.0,0.019219]
[1723306248046,0.082543,60574.0,60571.0,0.029219]
[1723306248250,0.082543,60574.0,60573.0,0.02]
[1723306248657,0.082543,60574.0,60571.0,0.019219]
[1723306249005,0.082545,60573.0,60571.0,0.019219]
[1723306249212,0.165082,60576.0,60571.0,0.026219]
[1723306249213,0.082543,60575.0,60571.0,0.026219]
[1723306249571,0.082544,60574.0,60571.0,0.026219]
[1723306249970,0.082544,60574.0,60573.0,0.02]
[1723306250587,0.082544,60574.0,60571.0,0.036219]
[1723306250588,0.082544,60574.0,60571.0,0.026219]
[1723306250941,0.082544,60574.0,60573.0,0.02]
[1723306251146,0.082544,60574.0,60571.0,0.026219]
[1723306251147,0.082544,60574.0,60571.0,0.019219]
[1723306251371,0.082544,60574.0,60573.0,0.02]
[1723306252230,0.247624,60576.0,60575.0,0.02]
[1723306253008,0.165075,60579.0,60578.0,0.02]
[1723306253206,0.347611,60579.0,60578.0,0.02]
[1723306253770,0.347611,60579.0,60573.0,0.008]
[1723306253771,0.082542,60575.0,60573.0,0.008]
[1723306254980,0.082542,60575.0,60571.0,0.019219]
[1723306255209,0.082542,60575.0,60574.0,0.02]
[1723306256082,0.082542,60575.0,60571.0,0.019219]
[1723306256686,0.08254,60577.0,60574.0,0.007]
[1723306256888,0.182537,60579.0,60578.0,0.02]
[1723306257090,0.182537,60579.0,60578.0,0.01]
[1723306257091,0.1,60579.0,60578.0,0.01]
[1723306257243,0.082536,60579.0,60578.0,0.03]
[1723306257444,0.0797,60586.0,60585.0,0.03]
[1723306257445,0.082527,60586.0,60585.0,0.03]
[1723306257694,0.0825,60591.0,60590.0,0.01]
[1723306257695,0.16502,60591.0,60590.0,0.01]
[1723306257898,0.807561,60591.0,60590.0,0.01]
[1723306258613,0.807561,60591.0,60590.0,0.03]
[1723306258816,0.972603,60591.0,60590.0,0.03]
[1723306259471,0.807561,60591.0,60590.0,0.03]
[1723306259689,0.907561,60591.0,60590.0,0.03]
[1723306260007,1.072603,60591.0,60590.0,0.03]
[1723306260432,1.072603,60591.0,60590.0,0.031]
[1723306260874,0.907561,60591.0,60590.0,0.031]
[1723306261251,0.907561,60591.0,60590.0,0.032]
[1723306261713,0.907561,60591.0,60590.0,0.031]
[1723306262070,0.907561,60591.0,60590.0,0.032]
[1723306262523,0.907561,60591.0,60590.0,0.031]
[1723306263099,0.66,60591.0,60590.0,0.031]
[1723306263539,0.56,60591.0,60590.0,0.031]
[1723306263766,0.56,60591.0,60590.0,0.032]
[1723306263975,0.56,60591.0,60590.0,0.031]
[1723306264555,0.56,60591.0,60590.0,0.03]
[1723306264754,0.56,60591.0,60590.0,0.036]
[1723306265021,0.56,60591.0,60590.0,0.118521]
[1723306265242,0.56,60591.0,60590.0,0.283564]
[1723306265451,0.56,60591.0,60590.0,0.346264]
[1723306265654,0.56,60591.0,60590.0,0.320264]
[1723306265803,0.56,60591.0,60590.0,0.175221]
[1723306266005,0.56,60591.0,60590.0,0.182221]
[1723306266610,0.56,60591.0,60590.0,0.187221]
[1723306266818,0.56312583,60591.0,60590.0,0.187221]
[1723306267372,0.56312583,60591.0,60590.0,0.182221]
[1723306267721,0.56312583,60591.0,60590.0,0.189221]
[1723306267967,0.56312583,60591.0,60590.0,0.354264]
[1723306268174,0.56312583,60591.0,60590.0,0.203221]
[1723306268329,0.56312583,60591.0,60590.0,0.354264]
[1723306268533,0.56312583,60591.0,60590.0,0.189221]
[1723306268734,0.56312583,60591.0,60590.0,0.203221]
[1723306269144,0.00312583,60591.0,60590.0,0.519307]
[1723306269347,0.082504,60604.0,60603.0,0.03]
[1723306269549,0.0601,60606.0,60605.0,0.03]
[1723306269550,0.1426,60606.0,60605.0,0.03]
[1723306269754,0.7326,60606.0,60605.0,0.03]
[1723306269959,0.6725,60606.0,60605.0,0.03]
[1723306270171,0.59,60606.0,60605.0,0.03]
[1723306270371,0.6725,60606.0,60605.0,0.03]
[1723306270569,0.69,60606.0,60605.0,0.03]
[1723306270773,0.7725,60606.0,60605.0,0.03]
[1723306271257,0.9375,60606.0,60605.0,0.03]
[1723306271455,1.26631492,60606.0,60605.0,0.03]
[1723306271600,1.26631492,60606.0,60605.0,0.034]
[1723306271806,1.26631492,60606.0,60605.0,0.038]
[1723306271807,1.2692518,60606.0,60605.0,0.038]
[1723306273187,1.2692518,60606.0,60605.0,0.034]
[1723306273673,1.2692518,60606.0,60605.0,0.03]
[1723306277328,1.01574636,60606.0,60602.0,0.01]
[1723306277516,1.01574636,60606.0,60591.0,0.4796]
[1723306277517,0.165024,60597.0,60593.0,0.01]
[1723306277746,0.309061,60591.0,60590.0,0.0109141]
[1723306277947,0.87965792,60591.0,60590.0,0.0009141]
[1723306278120,0.98262015,60591.0,60590.0,0.0009141]
[1723306278337,1.00562015,60591.0,60590.0,0.0009141]
[1723306278744,2.06496699,60591.0,60590.0,0.0009141]
[1723306278916,1.93718823,60591.0,60590.0,0.0009141]
[1723306279317,2.13478823,60591.0,60590.0,0.0009141]
[1723306279929,2.14466115,60591.0,60590.0,0.0009141]
[1723306281090,2.19360643,60591.0,60590.0,0.0009141]
[1723306281324,2.19376807,60591.0,60590.0,0.0009141]
[1723306281754,2.14482279,60591.0,60590.0,0.0009141]
[1723306282020,2.19383709,60591.0,60590.0,0.0009141]
[1723306282453,2.19383709,60591.0,60590.0,0.0019141]
[1723306282833,2.19383709,60591.0,60590.0,0.0009141]
[1723306283610,2.02879609,60591.0,60590.0,0.0009141]
[1723306283810,1.06918179,60591.0,60590.0,0.0109141]
[1723306284626,0.99249307,60591.0,60590.0,0.0109141]
[1723306284842,1.06890084,60591.0,60590.0,0.0109141]
[1723306285876,0.99249307,60591.0,60590.0,0.0109141]
[1723306287666,1.60249307,60591.0,60590.0,0.0109141]
[1723306287863,1.67867619,60591.0,60590.0,0.0109141]
[1723306288087,1.60249307,60591.0,60590.0,0.0109141]
[1723306289478,1.60249307,60591.0,60590.0,0.0009141]
[1723306289479,2.11239105,60591.0,60590.0,0.0009141]
[1723306289698,2.06335675,60591.0,60590.0,0.0009141]
[1723306289919,2.13693544,60591.0,60590.0,0.0009141]
[1723306290308,2.06379431,60591.0,60590.0,0.0009141]
[1723306290926,1.82309307,60591.0,60590.0,0.0009141]
[1723306291076,1.9001658,60591.0,60590.0,0.0009141]
[1723306291291,1.9001658,60591.0,60578.0,0.02]
[1723306291292,0.577745,60580.0,60579.0,0.01]
[1723306291497,0.88985992,60580.0,60579.0,0.01]
[1723306291728,0.99319155,60580.0,60579.0,0.01]
[1723306292214,0.412682,60579.0,60578.0,0.02]
[1723306292477,0.67649692,60579.0,60578.0,0.02]
[1723306292684,0.67982339,60579.0,60578.0,0.03]
[1723306293097,0.66982339,60579.0,60578.0,0.03]
[1723306293653,0.83489639,60579.0,60578.0,0.03]
[1723306293848,0.83489639,60579.0,60578.0,0.029]
[1723306294060,0.83489639,60579.0,60578.0,0.039]
[1723306295908,0.66982339,60579.0,60578.0,0.047]
[1723306297149,0.34093547,60579.0,60578.0,0.047]
[1723306297788,0.34093547,60579.0,60578.0,0.0479141]
[1723306298458,0.34093547,60579.0,60578.0,0.0389141]
[1723306298659,0.34093547,60579.0,60578.0,0.0479141]
[1723306299304,0.34093547,60579.0,60578.0,0.0399141]
[1723306299481,0.66982339,60579.0,60578.0,0.0399141]
[1723306299680,0.66982339,60579.0,60578.0,0.0479141]
[1723306301107,0.34093547,60579.0,60578.0,0.0479141]
[1723306301492,0.34093547,60579.0,60578.0,0.0389141]
[1723306301632,0.50600847,60579.0,60578.0,0.0389141]
[1723306301838,0.50600847,60579.0,60578.0,0.0479141]
[1723306302044,0.34093547,60579.0,60578.0,0.0479141]
[1723306303070,0.34093547,60579.0,60578.0,0.0399141]
[1723306303594,0.34093547,60579.0,60578.0,0.0479141]
[1723306304396,0.34093547,60579.0,60578.0,0.0279141]
[1723306304700,0.34093547,60579.0,60578.0,0.0479141]
[1723306305660,0.34093547,60579.0,60578.0,0.0279141]
[1723306305871,0.34093547,60579.0,60578.0,0.0479141]
[1723306307122,0.66982339,60579.0,60578.0,0.0479141]
[1723306307851,0.66982339,60579.0,60578.0,0.0279141]
[1723306307974,0.66982339,60579.0,60578.0,0.0199141]
[1723306308370,0.66982339,60579.0,60578.0,0.0189141]
[1723306308961,0.66982339,60579.0,60578.0,0.0279141]
[1723306309173,0.66982339,60579.0,60578.0,0.0479141]
[1723306309382,0.10332647,60579.0,60578.0,0.1908141]
[1723306309590,0.00332647,60579.0,60578.0,0.1908141]
[1723306309790,0.00332647,60579.0,60578.0,0.4184281]
[1723306309909,0.000831,60580.0,60579.0,0.102536]
[1723306310107,0.000831,60580.0,60579.0,0.277609]
[1723306310316,0.000831,60580.0,60579.0,0.42598314]
[1723306310544,0.000831,60580.0,60579.0,0.44598314]
[1723306310889,0.000831,60580.0,60579.0,0.42598314]
[1723306311258,0.000831,60580.0,60579.0,0.03]
[1723306311467,0.0043379,60580.0,60579.0,0.03]
[1723306311737,0.0043379,60580.0,60579.0,0.112536]
[1723306311941,0.0043379,60580.0,60579.0,0.01]
[1723306312133,0.0043379,60580.0,60579.0,0.021]
[1723306312389,0.000831,60580.0,60579.0,0.031]
[1723306314608,0.000831,60580.0,60579.0,0.021]
[1723306314988,0.000831,60580.0,60579.0,0.028]
[1723306315230,0.000831,60580.0,60579.0,0.048]
[1723306315636,0.000831,60580.0,60579.0,0.041]
[1723306315979,0.000831,60580.0,60579.0,0.031]
[1723306316483,0.000831,60580.0,60579.0,0.113536]
[1723306316725,0.000831,60580.0,60579.0,0.031]
[1723306318568,0.000831,60580.0,60579.0,0.113536]
[1723306318739,0.000831,60580.0,60579.0,0.133536]
[1723306319157,0.000831,60580.0,60579.0,0.113536]
[1723306320584,0.000831,60580.0,60579.0,0.278609]
[1723306321161,0.000831,60580.0,60579.0,0.113536]
[1723306321361,0.000831,60580.0,60579.0,0.278609]
[1723306323174,0.000831,60580.0,60579.0,0.288609]
[1723306323374,0.000831,60580.0,60579.0,0.54998308]
[1723306323578,0.000831,60580.0,60579.0,0.52998308]
[1723306323896,0.000831,60580.0,60579.0,0.526682]
[1723306324426,0.000831,60580.0,60579.0,0.6568863]
[1723306324818,0.000831,60580.0,60579.0,0.7202863]
[1723306325232,0.000831,60580.0,60579.0,0.7402863]
[1723306325434,0.000831,60580.0,60579.0,0.7202863]
[1723306325661,0.000831,60580.0,60579.0,0.7002004]
[1723306326277,0.000831,60580.0,60579.0,0.7112004]
[1723306326471,0.000831,60580.0,60579.0,0.73116179]
[1723306326810,0.000831,60580.0,60579.0,0.74116179]
[1723306327176,0.000831,60580.0,60579.0,0.71016179]
[1723306327584,0.000831,60580.0,60579.0,0.72416179]
[1723306327822,0.000831,60580.0,60579.0,0.71416179]
[1723306328171,0.000831,60580.0,60579.0,0.5839961]
[1723306328626,0.000831,60580.0,60579.0,0.73379387]
[1723306328965,0.000831,60580.0,60579.0,0.71379387]
[1723306329162,0.000831,60580.0,60579.0,0.69979387]
[1723306329584,0.000831,60580.0,60579.0,0.71379387]
[1723306330002,0.000831,60580.0,60579.0,0.72773133]
[1723306330403,0.000831,60580.0,60579.0,0.2865231]
[1723306331507,0.000831,60580.0,60579.0,0.3065231]
[1723306333263,0.000831,60580.0,60579.0,0.2865231]
[1723306333483,0.000831,60580.0,60579.0,0.3065231]
[1723306333606,0.000831,60580.0,60579.0,0.4715961]
[1723306334275,0.000831,60580.0,60579.0,0.60058311]
[1723306334574,0.000831,60580.0,60579.0,0.58058311]
[1723306334729,0.000831,60580.0,60579.0,0.60058311]
[1723306335309,0.000831,60580.0,60579.0,0.56658311]
[1723306335949,0.000831,60580.0,60579.0,0.58658311]
[1723306336372,0.000831,60580.0,60579.0,0.55258311]
[1723306336813,0.000831,60580.0,60579.0,0.56658311]
[1723306336987,0.000831,60580.0,60579.0,0.55258311]
[1723306337231,0.000831,60580.0,60579.0,0.56658311]
[1723306337386,0.000831,60580.0,60579.0,0.58058311]
[1723306338226,0.000831,60580.0,60579.0,0.56658311]
[1723306338538,0.000831,60580.0,60579.0,0.63418311]
[1723306338945,0.000831,60580.0,60579.0,0.64818311]
[1723306339909,0.000831,60580.0,60579.0,0.66218311]
[1723306340442,0.000831,60580.0,60579.0,0.64818311]
[1723306340630,0.000831,60580.0,60579.0,0.66218311]
[1723306340851,0.000831,60580.0,60579.0,0.84725611]
[1723306341011,0.000831,60580.0,60579.0,0.82725611]
[1723306341216,0.000831,60580.0,60579.0,0.6982691]
[1723306341413,0.000831,60580.0,60579.0,0.82689688]
[1723306342357,0.000831,60580.0,60579.0,1.26027079]
[1723306342556,0.000831,60580.0,60579.0,1.51157787]
[1723306342719,0.000831,60580.0,60579.0,1.77292015]
[1723306342920,0.000831,60580.0,60579.0,1.90653996]
[1723306343121,0.000831,60580.0,60579.0,1.78292015]
[1723306343444,0.000831,60580.0,60579.0,1.90649352]
[1723306344032,0.000831,60580.0,60579.0,1.76892015]
[1723306344289,0.000831,60580.0,60579.0,1.68637373]
[1723306344455,0.000831,60580.0,60579.0,2.03907974]
[1723306344681,0.000831,60580.0,60579.0,2.05307974]
[1723306344920,0.000831,60580.0,60579.0,1.87831311]
[1723306345136,0.000831,60580.0,60579.0,1.87820044]
[1723306345592,0.000831,60580.0,60579.0,1.60802932]
[1723306345761,0.000831,60580.0,60579.0,1.62202932]
[1723306345968,0.000831,60580.0,60579.0,1.79336593]
[1723306346422,0.000831,60580.0,60579.0,1.62202932]
[1723306346825,0.000831,60580.0,60579.0,1.89220021]
[1723306347290,0.000831,60580.0,60579.0,1.7208639]
[1723306347465,0.000831,60580.0,60579.0,1.45069301]
[1723306347673,0.000831,60580.0,60579.0,1.56978901]
[1723306347873,0.000831,60580.0,60579.0,2.07959827]
[1723306348046,0.000831,60580.0,60579.0,2.12159827]
[1723306348249,0.000831,60580.0,60579.0,2.07959827]
[1723306348470,0.000831,60580.0,60579.0,2.09359827]
[1723306348700,0.000831,60580.0,60579.0,2.19686818]
[1723306349094,0.000831,60580.0,60579.0,2.37303443]
[1723306349296,0.000831,60580.0,60579.0,2.33103443]
[1723306349509,0.000831,60580.0,60579.0,2.37303443]
[1723306349708,0.000831,60580.0,60579.0,2.35903443]
[1723306349937,0.000831,60580.0,60579.0,2.39211443]
[1723306350089,0.000831,60580.0,60579.0,2.24394818]
[1723306350686,0.000831,60580.0,60579.0,1.87632769]
[1723306350895,0.000831,60580.0,60579.0,1.93232769]
[1723306351093,0.000831,60580.0,60579.0,1.90932769]
[1723306351269,0.000831,60580.0,60579.0,1.72334157]
[1723306351478,0.000831,60580.0,60579.0,1.79138816]
[1723306351685,0.0611,60606.0,60605.0,0.607507]
[1723306351909,0.00083,60608.0,60607.0,0.442492]
[1723306352081,0.00083,60608.0,60607.0,0.77130392]
[1723306353545,0.00083,60608.0,60607.0,0.76430392]
[1723306354955,0.00083,60608.0,60607.0,0.78630392]
[1723306355133,0.00083,60608.0,60607.0,1.2661671]
[1723306355560,0.00083,60608.0,60607.0,1.2241671]
[1723306355772,0.00083,60608.0,60607.0,1.2661671]
[1723306355944,0.00083,60608.0,60607.0,1.2241671]
[1723306356147,0.00083,60608.0,60607.0,1.2111671]
[1723306356649,0.00083,60608.0,60607.0,1.25981249]
[1723306357016,0.00083,60608.0,60607.0,1.30281249]
[1723306357561,0.00083,60608.0,60607.0,1.27481249]
[1723306357788,0.00083,60608.0,60607.0,1.31681249]
[1723306358191,0.00083,60608.0,60607.0,1.31831286]
[1723306358511,0.00083,60608.0,60607.0,1.26866747]
[1723306358713,0.00083,60608.0,60607.0,1.25466747]
[1723306359070,0.00083,60608.0,60607.0,1.26866747]
[1723306359275,0.00083,60608.0,60607.0,1.24066747]
[1723306359477,0.00083,60608.0,60607.0,1.19866747]
[1723306359673,0.00083,60608.0,60607.0,1.22666747]
[1723306360309,0.00083,60608.0,60607.0,1.21266747]
[1723306360508,0.00083,60608.0,60607.0,1.25466747]
[1723306361176,0.00083,60608.0,60607.0,1.24066747]
[1723306362224,0.00083,60608.0,60607.0,1.23970953]
[1723306362471,0.00083,60608.0,60607.0,1.25370953]
[1723306363214,0.00083,60608.0,60607.0,1.26770953]
[1723306364159,0.00083,60608.0,60607.0,1.22570953]
[1723306364342,0.00083,60608.0,60607.0,1.26770953]
[1723306364998,0.00083,60608.0,60607.0,1.22570953]
[1723306365199,0.00083,60608.0,60607.0,1.26770953]
[1723306365439,0.00083,60608.0,60607.0,1.26785224]
[1723306367423,0.00083,60608.0,60607.0,1.25785224]
[1723306367624,0.00083,60608.0,60607.0,1.19545224]
[1723306368980,0.00083,60608.0,60607.0,1.20545224]
[1723306369828,0.00083,60608.0,60607.0,1.19545224]
[1723306370788,0.00083,60608.0,60607.0,1.10465224]
[1723306371343,0.00083,60608.0,60607.0,0.98630092]
[1723306371553,0.00083,60608.0,60607.0,1.11440196]
[1723306371776,0.00083,60608.0,60607.0,1.17870196]
[1723306371950,0.00083,60608.0,60607.0,1.19770196]
[1723306372150,0.00083,60608.0,60607.0,1.29770196]
[1723306372367,0.00083,60608.0,60607.0,1.24810092]
[1723306372668,0.00083,60608.0,60607.0,1.48561051]
[1723306372876,0.00083,60608.0,60607.0,1.52761051]
[1723306373425,0.00083,60608.0,60607.0,1.59610969]
[1723306373781,0.00083,60608.0,60607.0,1.55410969]
[1723306373988,0.00083,60608.0,60607.0,1.61010969]
[1723306374148,0.00083,60608.0,60607.0,1.56810969]
[1723306374347,0.00083,60608.0,60607.0,1.58210969]
[1723306374549,0.00083,60608.0,60607.0,1.56810969]
[1723306374906,0.00083,60608.0,60607.0,1.58210969]
[1723306376367,0.00083,60608.0,60607.0,1.62465848]
[1723306376593,0.00083,60608.0,60607.0,1.79590645]
[1723306377780,0.00083,60608.0,60607.0,1.76790645]
[1723306378164,0.00083,60608.0,60607.0,1.79590645]
[1723306378609,0.00083,60608.0,60607.0,1.73990645]
[1723306378896,0.00083,60608.0,60607.0,1.94305793]
[1723306379096,0.00083,60608.0,60607.0,1.78190645]
[1723306379535,0.00083,60608.0,60607.0,1.95705793]
[1723306381308,0.00083,60608.0,60607.0,1.94305793]
[1723306381524,0.00083,60608.0,60607.0,1.95705793]
[1723306381735,0.00083,60608.0,60607.0,1.94305793]
[1723306382116,0.00083,60608.0,60607.0,1.62626093]
[1723306382326,0.00083,60608.0,60607.0,1.16480206]
[1723306382456,0.00083,60608.0,60607.0,1.62489186]
[1723306382886,0.00083,60608.0,60607.0,1.6108889]
[1723306383390,0.00083,60608.0,60607.0,1.6248889]
[1723306383782,0.00083,60608.0,60607.0,1.6148889]
[1723306384203,0.00083,60608.0,60607.0,1.62469976]
[1723306384990,0.00083,60608.0,60607.0,1.61469976]
[1723306385256,0.00083,60608.0,60607.0,1.62469976]
[1723306387383,0.00083,60608.0,60607.0,1.67387561]
[1723306388004,0.00083,60608.0,60607.0,1.58269976]
[1723306388376,0.00083,60608.0,60607.0,1.67387561]
[1723306388550,0.00083,60608.0,60607.0,1.62469976]
[1723306388694,0.00083,60608.0,60607.0,1.69846354]
[1723306388900,0.00083,60608.0,60607.0,1.80169527]
[1723306389302,0.00083,60608.0,60607.0,1.72793149]
[1723306389516,0.00083,60608.0,60607.0,1.72731461]
[1723306389746,0.00083,60608.0,60607.0,1.82566632]
[1723306389943,0.00083,60608.0,60607.0,1.72731461]
[1723306390502,0.00083,60608.0,60607.0,1.82566632]
[1723306391624,0.00083,60608.0,60607.0,1.82605475]
[1723306392357,0.00083,60608.0,60607.0,1.74702252]
[1723306392573,0.00083,60608.0,60607.0,1.72731831]
[1723306392981,0.00083,60608.0,60607.0,1.68531831]
[1723306393543,0.00083,60608.0,60607.0,1.5938323]
[1723306393749,0.00083,60608.0,60607.0,1.83358022]
[1723306394154,0.00083,60608.0,60607.0,1.87404965]
[1723306394949,0.00083,60608.0,60607.0,1.87399361]
[1723306396030,0.00083,60608.0,60607.0,1.79149561]
[1723306396233,0.00083,60608.0,60607.0,1.87399361]
[1723306396455,0.00083,60608.0,60607.0,1.91599361]
[1723306396657,0.00083,60608.0,60607.0,1.87412431]
[1723306397410,0.00083,60608.0,60607.0,2.0225109]
[1723306397611,0.00083,60608.0,60607.0,2.02251345]
[1723306397946,0.00083,60608.0,60607.0,1.87412431]
[1723306398147,0.00083,60608.0,60607.0,2.06451345]
[1723306398394,0.00083,60608.0,60607.0,2.08501345]
[1723306398596,0.00083,60608.0,60607.0,1.93662431]
[1723306400250,0.00083,60608.0,60607.0,1.8081437]
[1723306400450,0.00083,60608.0,60607.0,1.93637971]
[1723306401061,0.00083,60608.0,60607.0,1.97837971]
[1723306401423,0.00083,60608.0,60607.0,1.93637971]
[1723306402371,0.00083,60608.0,60607.0,1.97837971]
[1723306402732,0.00083,60608.0,60607.0,1.93637971]
[1723306403937,0.00083,60608.0,60607.0,2.01145863]